[Event "Copenhagen Challenge IM 2020"]
[Site "Ballerup"]
[Date "2020.07.24"]
[Round "5.10"]
[White "Nielsen, Viktor Haarmark"]
[Black "Vesterli, Michael E."]
[Result "1-0"]
[ECO "B33"]
[WhiteElo "2301"]
[BlackElo "2266"]
[Annotator "RC"]
[PlyCount "69"]
[EventDate "2020.07.22"]
[EventType "tourn"]
[EventCountry "DEN"]
[SourceTitle "playchess.com"]
[Source "ChessBase"]
[SourceQuality "1"]
[TimeControl "40/5400:0"]

1. e4 {[%emt 0:00:00]} c5 {[%emt 0:00:00]} 2. Nf3 {[%emt 0:00:00]} Nc6 {[%emt 0:00:00]} 3. d4 {[%emt 0:00:00]} cxd4 {[%emt 0:00:00]} 4. Nxd4 {[%emt 0:00:00]} Nf6 {[%emt 0:00:00]} 5. Nc3 {[%emt 0:00:00]} e5 {[%emt 0:00:00]} 6. Ndb5 {[%emt 0:00:00]} d6 {[%emt 0:00:00]} 7. Bg5 {[%emt 0:00:00]} a6 {[%emt 0:00:00]} 8. Na3 {[%emt 0:00:00]} b5 {[%emt 0:00:00]} 9. Nd5 {[%emt 0:00:00]} Be7 {[%emt 0:00:00]} 10. Bxf6 {[%emt 0:00:00]} Bxf6 {[%emt 0:00:00]} 11. c4 {[%emt 0:00:00]} b4 {[%emt 0:03:54]} 12. Nc2 {[%emt 0:00:00]} a5 {[%emt 0:00:00]} 13. g3 {[%emt 0:00:00]} O-O {[%emt 0:00:00]} 14. Bg2 {[%emt 0:00:00]} Bg5 {[%emt 0:00:00]} 15. O-O {[%emt 0:00:00]} Be6 {[%emt 0:02:16]} 16. Qd3 {[%emt 0:02:29]} Qb8 {[%emt 0:04:57]} 17. f4 {[%emt 0:03:30]} Bh6 {[%emt 0:01:41]} 18. f5 {[%emt 0:01:06]} Bxd5 {[%emt 0:00:56]} 19. exd5 {[%emt 0:01:55]} Qb6+ {[%emt 0:04:19]} 20. Kh1 {[%emt 0:00:00]} Nd4 {[%emt 0:00:16]} 21. f6 {[%emt 0:01:31]} g6 {[%emt 0:00:35]} 22. Ne3 {[%emt 0:00:38]} Rfc8 {[%emt 0:02:53]} 23. h4 {[%emt 0:08:20]} Qd8 {[%emt 0:04:05]} 24. Ng4 {[%emt 0:00:35]} Bf8 {[%emt 0:03:54]} 25. Be4 {[%emt 0:03:45]} Qd7 {[%emt 0:02:25]} 26. Nf2 {[%emt 0:01:26]} b3 {[%emt 0:01:28]} 27. h5 {[%emt 0:04:26]} Qe8 {[%emt 0:02:15]} 28. Kg2 {[%emt 0:02:19]} bxa2 {[%emt 0:01:02]} 29. hxg6 {[%emt 0:08:17]} fxg6 {[%emt 0:00:42]} 30. Rxa2 {[%emt 0:14:35]} Rcb8 {[%emt 0:02:07]} 31. Nh3 {[%emt 0:01:16]} Kh8 {[%emt 0:00:25]} 32. Ng5 {[%emt 0:00:47]} Rb3 {[%emt 0:01:55]} 33. Qd1 {[%emt 0:01:03]} Bh6 {[%emt 0:11:30]} 34. Ne6 {[%emt 0:04:10]} Nf5 {[%emt 0:00:00]} 35. Qxb3 {[%emt 0:00:11]} 1-0

[Event "Copenhagen Challenge IM 2020"]
[Site "Ballerup"]
[Date "2020.07.25"]
[Round "6.6"]
[White "Heimisson, Hilmir Freyr"]
[Black "Vinter-Schou, Uffe"]
[Result "1-0"]
[ECO "A45"]
[WhiteElo "2309"]
[BlackElo "2349"]
[Annotator "ChessBase"]
[PlyCount "141"]
[EventDate "2020.07.22"]
[EventType "tourn"]
[EventCountry "DEN"]
[SourceTitle "playchess.com"]
[Source "ChessBase"]
[SourceQuality "1"]
[TimeControl "40/5400:0"]

1. d4 {[%emt 0:00:00]} Nf6 {[%emt 0:00:00]} 2. Bf4 {[%emt 0:00:00]} e6 {[%emt 0:01:03]} 3. Nf3 {[%emt 0:00:00]} c5 {[%emt 0:00:00]} 4. e3 {[%emt 0:00:00]} Nc6 {[%emt 0:00:00]} 5. Nbd2 {[%emt 0:01:19]} Be7 {[%emt 0:05:06]} 6. Nc4 {[%emt 0:10:26]} d5 {[%emt 0:04:05]} 7. Nce5 {[%emt 0:00:00]} Qb6 {[%emt 0:00:00]} 8. Rb1 {[%emt 0:10:59]} Qa5+ {[%emt 0:02:00]} 9. c3 {[%emt 0:00:20]} Qxa2 {[%emt 0:00:00]} 10. dxc5 {[%emt 0:04:28]} O-O {[%emt 0:08:10]} 11. Bd3 {[%emt 0:01:37]} Ne4 {[%emt 0:07:14]} 12. O-O {[%emt 0:17:50]} Nxc5 {[%emt 0:19:16]} 13. b4 {[%emt 0:00:38]} Nxe5 {[%emt 0:07:57]} 14. Nxe5 {[%emt 0:00:00]} Ne4 {[%emt 0:00:00]} 15. Ra1 {[%emt 0:14:06]} Qb2 {[%emt 0:02:15]} 16. Bxe4 {[%emt 0:04:52]} dxe4 {[%emt 0:00:00]} 17. Nc4 {[%emt 0:00:18]} Qxc3 {[%emt 0:00:00]} 18. Nb6 {[%emt 0:00:00]} axb6 {[%emt 0:06:26]} 19. Rxa8 {[%emt 0:00:00]} Qxb4 {[%emt 0:03:53]} 20. Qd4 {[%emt 0:03:28]} Qxd4 {[%emt 0:02:43]} 21. exd4 {[%emt 0:00:00]} Bd7 {[%emt 0:00:00]} 22. Rfa1 {[%emt 0:00:00]} f6 {[%emt 0:00:53]} 23. Rxf8+ {[%emt 0:05:09]} Kxf8 {[%emt 0:00:17]} 24. Rb1 {[%emt 0:01:56]} b5 {[%emt 0:00:00]} 25. Kf1 {[%emt 0:01:31]} Bc6 {[%emt 0:01:06]} 26. Ke1 {[%emt 0:01:11]} Kf7 {[%emt 0:00:00]} 27. Kd2 {[%emt 0:01:57]} b4 {[%emt 0:01:41]} 28. h4 {[%emt 0:03:55]} h5 {[%emt 0:00:00]} 29. Rg1 {[%emt 0:01:04]} Bd5 {[%emt 0:01:07]} 30. Kc2 {[%emt 0:00:00]} Bd8 {[%emt 0:00:14]} 31. Bc1 {[%emt 0:01:16]} Ba5 {[%emt 0:02:14]} 32. g4 {[%emt 0:00:49]} b3+ {[%emt 0:00:04]} 33. Kb2 {[%emt 0:00:00]} hxg4 {[%emt 0:00:01]} 34. Rxg4 {[%emt 0:00:00]} f5 {[%emt 0:00:34]} 35. Rg1 {[%emt 0:00:00]} Bc7 {[%emt 0:00:00]} 36. Bd2 {[%emt 0:00:03]} Bd6 {[%emt 0:01:40]} 37. h5 {[%emt 0:00:00]} Bh2 {[%emt 0:03:55]} 38. Rg6 {[%emt 0:00:00]} b5 {[%emt 0:02:28]} 39. Rg5 {[%emt 0:00:00]} Bd6 {[%emt 0:00:23]} 40. Rg1 {[%emt 0:00:05]} Be7 {[%emt 0:00:45]} 41. Bf4 {[%emt 1:06:04]} Bf6 {[%emt 1:00:12]} 42. Be5 {[%emt 0:00:00]} Bc4 {[%emt 0:05:08]} 43. Rg6 {[%emt 0:03:02]} Bxe5 {[%emt 0:00:00]} 44. dxe5 {[%emt 0:00:00]} Be2 {[%emt 0:00:00]} 45. Rg5 {[%emt 0:02:17]} f4 {[%emt 0:00:00]} 46. Kxb3 {[%emt 0:01:38]} e3 {[%emt 0:00:00]} 47. fxe3 {[%emt 0:00:00]} f3 {[%emt 0:00:00]} 48. Rg4 {[%emt 0:00:00]} Kg8 {[%emt 0:00:00]} 49. Rf4 {[%emt 0:06:19]} Kh7 {[%emt 0:00:00]} 50. Kc3 {[%emt 0:00:39]} Kh6 {[%emt 0:00:00]} 51. Kd2 {[%emt 0:00:00]} Kxh5 {[%emt 0:00:00]} 52. Ke1 {[%emt 0:00:00]} g5 {[%emt 0:21:18]} 53. Rf6 {[%emt 0:00:00]} Bc4 {[%emt 0:00:00]} 54. Kf2 {[%emt 0:00:13]} g4 {[%emt 0:00:38]} 55. Kg3 {[%emt 0:00:00]} Bd5 {[%emt 0:01:25]} 56. Rf4 {[%emt 0:00:00]} Bc4 {[%emt 0:02:27]} 57. Rf8 {[%emt 0:00:00]} Kg5 {[%emt 0:00:15]} 58. Rf7 {[%emt 0:00:44]} Kg6 {[%emt 0:00:00]} 59. Rf6+ {[%emt 0:02:08]} Kg5 {[%emt 0:00:00]} 60. Rf8 {[%emt 0:01:25]} Bd3 {[%emt 0:00:00]} 61. Rd8 {[%emt 0:00:40]} Be4 {[%emt 0:00:00]} 62. Rf8 {[%emt 0:00:45]} Bf5 {[%emt 0:00:00]} 63. Rg8+ {[%emt 0:00:10]} Bg6 {[%emt 0:00:00]} 64. e4 {[%emt 0:03:06]} b4 {[%emt 0:00:00]} 65. Kf2 {[%emt 0:00:45]} Kh5 {[%emt 0:00:29]} 66. Ke3 {[%emt 0:00:00]} b3 {[%emt 0:00:00]} 67. Rg7 {[%emt 0:00:08]} Bxe4 {[%emt 0:00:00]} 68. Kxe4 {[%emt 0:00:00]} b2 {[%emt 0:00:00]} 69. Rh7+ {[%emt 0:00:00]} Kg5 {[%emt 0:00:00]} 70. Rh1 {[%emt 0:00:00]} f2 {[%emt 0:00:00]} 71. Ke3 {[%emt 0:00:00]} 1-0

[Event "Copenhagen Challenge IM 2020"]
[Site "Ballerup"]
[Date "2020.07.25"]
[Round "6.9"]
[White "Vesterli, Michael E."]
[Black "Jepson, Christian"]
[Result "0-1"]
[ECO "D30"]
[WhiteElo "2266"]
[BlackElo "2377"]
[Annotator "ChessBase"]
[PlyCount "94"]
[EventDate "2020.07.22"]
[EventType "tourn"]
[EventCountry "DEN"]
[SourceTitle "playchess.com"]
[Source "ChessBase"]
[SourceQuality "1"]
[TimeControl "40/5400:0"]

1. d4 {[%emt 0:00:00]} Nf6 {[%emt 0:00:00]} 2. c4 {[%emt 0:00:00]} e6 {[%emt 0:02:09]} 3. Nf3 {[%emt 0:00:00]} d5 {[%emt 0:00:00]} 4. Bg5 {[%emt 0:00:00]} Nbd7 {[%emt 0:00:00]} 5. e3 {[%emt 0:00:00]} c6 {[%emt 0:03:19]} 6. Qc2 {[%emt 0:00:00]} Qa5+ {[%emt 0:02:16]} 7. Nbd2 {[%emt 0:00:00]} Ne4 {[%emt 0:01:11]} 8. Bf4 {[%emt 0:01:14]} Bb4 {[%emt 0:12:16]} 9. a3 {[%emt 0:08:49]} g5 {[%emt 0:05:39]} 10. Bg3 {[%emt 0:01:07]} h5 {[%emt 0:02:42]} 11. O-O-O {[%emt 0:05:16]} Bxa3 {[%emt 0:08:51]} 12. bxa3 {[%emt 0:02:41]} Qxa3+ {[%emt 0:00:00]} 13. Qb2 {[%emt 0:00:00]} Qxb2+ {[%emt 0:00:09]} 14. Kxb2 {[%emt 0:00:00]} h4 {[%emt 0:00:00]} 15. Nxe4 {[%emt 0:08:20]} dxe4 {[%emt 0:00:00]} 16. Nxg5 {[%emt 0:00:46]} hxg3 {[%emt 0:00:00]} 17. fxg3 {[%emt 0:00:00]} Ke7 {[%emt 0:14:44]} 18. Nxe4 {[%emt 0:00:32]} f5 {[%emt 0:00:19]} 19. Nd2 {[%emt 0:05:48]} Nf6 {[%emt 0:00:00]} 20. Be2 {[%emt 0:00:21]} Bd7 {[%emt 0:00:09]} 21. Ra1 {[%emt 0:08:53]} b6 {[%emt 0:00:32]} 22. Bf3 {[%emt 0:00:14]} a5 {[%emt 0:02:59]} 23. e4 {[%emt 0:02:56]} Ra7 {[%emt 0:01:07]} 24. e5 {[%emt 0:03:32]} Nh7 {[%emt 0:14:22]} 25. g4 {[%emt 0:02:15]} fxg4 {[%emt 0:00:27]} 26. Bxg4 {[%emt 0:00:00]} Rg8 {[%emt 0:00:00]} 27. h3 {[%emt 0:00:29]} c5 {[%emt 0:04:12]} 28. dxc5 {[%emt 0:09:02]} bxc5 {[%emt 0:00:00]} 29. Rhf1 {[%emt 0:01:00]} Bc6 {[%emt 0:02:30]} 30. g3 {[%emt 0:01:09]} Rd8 {[%emt 0:07:44]} 31. Kc3 {[%emt 0:03:52]} Rad7 {[%emt 0:00:11]} 32. Nb3 {[%emt 0:06:38]} Rd3+ {[%emt 0:00:00]} 33. Kc2 {[%emt 0:00:00]} Rxg3 {[%emt 0:00:52]} 34. Nxc5 {[%emt 0:00:00]} Rg2+ {[%emt 0:00:00]} 35. Kc1 {[%emt 0:01:55]} a4 {[%emt 0:00:00]} 36. Nxa4 {[%emt 0:04:30]} Be4 {[%emt 0:00:15]} 37. Bd1 {[%emt 0:00:00]} Ra8 {[%emt 0:00:21]} 38. Ra3 {[%emt 0:00:54]} Bf5 {[%emt 0:00:00]} 39. h4 {[%emt 0:01:31]} Nf8 {[%emt 0:00:00]} 40. Rb3 {[%emt 0:01:31]} Nd7 {[%emt 0:00:00]} 41. Rb7 {[%emt 1:30:52]} Ra5 {[%emt 1:30:09]} 42. Rf4 {[%emt 0:00:00]} Ke8 {[%emt 0:00:00]} 43. Rb5 {[%emt 0:00:00]} Nxe5 {[%emt 0:00:00]} 44. Rd4 {[%emt 0:00:00]} Nd3+ {[%emt 0:00:00]} 45. Kb1 {[%emt 0:00:00]} Rxb5+ {[%emt 0:00:00]} 46. cxb5 {[%emt 0:00:00]} Nb4+ {[%emt 0:00:00]} 47. Kc1 {[%emt 0:00:00]} Na2# {[%emt 0:00:00]} 0-1

[Event "Copenhagen Challenge IM 2020"]
[Site "Ballerup"]
[Date "2020.07.25"]
[Round "6.10"]
[White "Akdag, Dara"]
[Black "Ingebretsen, Jens E"]
[Result "1-0"]
[ECO "A03"]
[WhiteElo "2244"]
[BlackElo "2182"]
[Annotator "ChessBase"]
[PlyCount "105"]
[EventDate "2020.07.22"]
[EventType "tourn"]
[EventCountry "DEN"]
[SourceTitle "playchess.com"]
[Source "ChessBase"]
[SourceQuality "1"]
[TimeControl "40/5400:0"]

1. f4 {[%emt 0:00:00]} d5 {[%emt 0:01:51]} 2. Nf3 {[%emt 0:00:00]} Bg4 {[%emt 0:00:00]} 3. e3 {[%emt 0:00:00]} Nd7 {[%emt 0:00:00]} 4. h3 {[%emt 0:00:00]} Bxf3 {[%emt 0:00:00]} 5. Qxf3 {[%emt 0:00:00]} Ngf6 {[%emt 0:00:14]} 6. Nc3 {[%emt 0:00:00]} c6 {[%emt 0:04:38]} 7. g4 {[%emt 0:00:36]} e5 {[%emt 0:01:56]} 8. d3 {[%emt 0:14:47]} Bd6 {[%emt 0:02:36]} 9. g5 {[%emt 0:04:28]} Ng8 {[%emt 0:00:00]} 10. e4 {[%emt 0:08:15]} exf4 {[%emt 0:03:04]} 11. Bxf4 {[%emt 0:11:24]} Ne5 {[%emt 0:04:24]} 12. Qf2 {[%emt 0:04:39]} d4 {[%emt 0:02:16]} 13. Ne2 {[%emt 0:00:10]} Qa5+ {[%emt 0:08:15]} 14. Bd2 {[%emt 0:00:23]} Bb4 {[%emt 0:02:18]} 15. Bxb4 {[%emt 0:09:56]} Qxb4+ {[%emt 0:00:21]} 16. Kd1 {[%emt 0:00:00]} c5 {[%emt 0:01:59]} 17. Qf5 {[%emt 0:04:37]} Nc6 {[%emt 0:00:36]} 18. Rb1 {[%emt 0:02:02]} Nge7 {[%emt 0:00:04]} 19. Qf2 {[%emt 0:00:00]} Qa4 {[%emt 0:02:51]} 20. a3 {[%emt 0:00:31]} O-O {[%emt 0:03:44]} 21. Nf4 {[%emt 0:00:28]} Rad8 {[%emt 0:00:58]} 22. h4 {[%emt 0:02:13]} Ne5 {[%emt 0:07:07]} 23. Qg3 {[%emt 0:00:00]} c4 {[%emt 0:03:36]} 24. h5 {[%emt 0:04:13]} Qc6 {[%emt 0:04:12]} 25. Rh2 {[%emt 0:07:28]} cxd3 {[%emt 0:06:20]} 26. Bxd3 {[%emt 0:03:01]} Qc7 {[%emt 0:05:28]} 27. g6 {[%emt 0:00:44]} Rc8 {[%emt 0:02:51]} 28. gxh7+ {[%emt 0:02:50]} Kh8 {[%emt 0:02:27]} 29. Rg2 {[%emt 0:01:07]} g6 {[%emt 0:00:00]} 30. hxg6 {[%emt 0:02:34]} fxg6 {[%emt 0:00:39]} 31. Ne6 {[%emt 0:00:00]} Qd6 {[%emt 0:00:12]} 32. Nxf8 {[%emt 0:00:00]} Rxf8 {[%emt 0:00:00]} 33. Rf2 {[%emt 0:00:00]} Rc8 {[%emt 0:01:33]} 34. Qf4 {[%emt 0:00:00]} Kg7 {[%emt 0:00:35]} 35. Kd2 {[%emt 0:00:00]} N7c6 {[%emt 0:03:13]} 36. Rh1 {[%emt 0:00:00]} Na5 {[%emt 0:06:55]} 37. h8=Q+ {[%emt 0:00:04]} Rxh8 {[%emt 0:00:00]} 38. Rxh8 {[%emt 0:00:00]} Kxh8 {[%emt 0:00:00]} 39. Qf8+ {[%emt 0:00:00]} Qxf8 {[%emt 0:00:00]} 40. Rxf8+ {[%emt 0:00:00]} Kg7 {[%emt 0:00:00]} 41. Rc8 {[%emt 1:29:49]} Kf6 {[%emt 1:29:35]} 42. Rc7 {[%emt 0:00:20]} Ke6 {[%emt 0:02:00]} 43. b4 {[%emt 0:00:15]} Kd6 {[%emt 0:00:00]} 44. Rg7 {[%emt 0:00:00]} Nac6 {[%emt 0:00:00]} 45. Rxb7 {[%emt 0:00:00]} g5 {[%emt 0:00:00]} 46. b5 {[%emt 0:00:00]} Ne7 {[%emt 0:00:00]} 47. Rxa7 {[%emt 0:00:00]} g4 {[%emt 0:00:00]} 48. Ke2 {[%emt 0:00:00]} N7g6 {[%emt 0:00:00]} 49. Ra6+ {[%emt 0:00:00]} Ke7 {[%emt 0:00:00]} 50. Rxg6 {[%emt 0:00:00]} Nxg6 {[%emt 0:00:00]} 51. Kf2 {[%emt 0:00:00]} Kf6 {[%emt 0:00:00]} 52. b6 {[%emt 0:00:00]} Ne5 {[%emt 0:00:00]} 53. Bb5 {[%emt 0:00:00]} 1-0